bitfinex/quotes_BTCUSD_20230906
["timestamp","ask_amount","ask_price","bid_price","bid_amount"]
[1693984311016,0.3504167,25776.0,25775.0,0.931179]
[1693984311291,0.49390675,25776.0,25775.0,1.708112]
[1693984311489,0.49390675,25776.0,25775.0,0.002]
[1693984311490,0.59600809,25776.0,25775.0,0.002]
[1693984311692,1.09081989,25776.0,25775.0,0.002]
[1693984311900,1.09081989,25776.0,25775.0,0.001]
[1693984312108,0.90474813,25776.0,25775.0,0.001]
[1693984312354,1.09763511,25776.0,25775.0,0.002]
[1693984313199,0.82962938,25776.0,25774.0,1.551933]
[1693984313409,0.13941101,25775.0,25774.0,1.55193]
[1693984313623,0.01785253,25774.0,25773.0,0.155252]
[1693984313834,0.86332886,25774.0,25771.0,0.776049]
[1693984314038,0.2323005,25773.0,25771.0,2.328154]
[1693984314220,0.36195785,25772.0,25771.0,1.552099]
[1693984314426,0.36195785,25772.0,25771.0,1.552095]
[1693984314598,0.36195785,25772.0,25771.0,1.707359]
[1693984315047,0.36195785,25772.0,25771.0,1.724359]
[1693984315432,0.27103765,25772.0,25771.0,1.719359]
[1693984315724,0.27103765,25772.0,25771.0,1.719354]
[1693984315962,0.27103765,25772.0,25771.0,1.76081793]
[1693984316215,0.27103765,25772.0,25771.0,0.98477293]
[1693984316854,0.27303765,25772.0,25771.0,1.00177293]
[1693984317938,0.27303765,25772.0,25771.0,1.77783893]
[1693984320235,0.27303765,25772.0,25771.0,2.55390493]
[1693984321736,0.27303765,25772.0,25771.0,2.55390093]
[1693984326645,0.27303765,25772.0,25771.0,1.77783493]
[1693984335580,0.36580361,25772.0,25771.0,0.22572793]
[1693984335784,0.50496019,25772.0,25771.0,0.22572793]
[1693984335991,0.36580361,25772.0,25771.0,0.22572793]
[1693984336593,0.36180361,25772.0,25771.0,0.97279393]
[1693984336748,0.36280361,25772.0,25771.0,0.98379393]
[1693984336937,0.36480361,25772.0,25771.0,0.99879393]
[1693984337133,0.36280361,25772.0,25771.0,0.98379393]
[1693984337401,0.37380361,25772.0,25771.0,0.19772793]
[1693984337564,0.38880361,25772.0,25771.0,0.19872793]
[1693984340802,0.04485253,25772.0,25771.0,0.97479393]
[1693984341446,0.13761849,25772.0,25771.0,1.75085993]
[1693984341689,0.04485253,25772.0,25771.0,1.75085993]
[1693984342378,0.13761849,25772.0,25771.0,1.75085993]
[1693984343803,0.13761849,25772.0,25771.0,3.42349193]
[1693984343804,0.04485253,25772.0,25771.0,3.42349193]
[1693984349284,0.13761849,25772.0,25771.0,3.42349193]
[1693984351752,0.13761849,25772.0,25771.0,2.64742593]
[1693984355679,0.27677507,25772.0,25771.0,2.64742593]
[1693984355885,0.13761849,25772.0,25771.0,3.42349193]
[1693984359237,0.04485253,25772.0,25771.0,3.42349193]
[1693984359641,0.04485253,25772.0,25771.0,3.30299193]
[1693984371612,0.13790255,25772.0,25771.0,3.30299193]
[1693984372852,0.04485253,25772.0,25771.0,3.30299193]
[1693984373064,0.13792515,25772.0,25771.0,3.30299193]
[1693984373837,0.04485253,25772.0,25771.0,3.30299193]
[1693984382317,0.13792515,25772.0,25771.0,3.30299193]
[1693984384536,0.13792515,25772.0,25771.0,2.52692593]
[1693984388078,0.04485253,25772.0,25771.0,2.52692593]
[1693984388309,0.27766133,25772.0,25771.0,2.52692593]
[1693984391375,0.18453781,25772.0,25771.0,2.52692593]
[1693984394428,0.27768815,25772.0,25771.0,2.52692593]
[1693984395132,0.27768815,25772.0,25771.0,3.30299193]
[1693984402452,0.27768815,25772.0,25771.0,4.42147661]
[1693984406168,0.27768815,25772.0,25771.0,5.62418788]
[1693984406169,0.027,25772.0,25771.0,5.62418788]
[1693984406368,0.027,25772.0,25771.0,6.06468788]
[1693984407549,0.015,25772.0,25771.0,6.06368788]
[1693984407749,0.017,25772.0,25771.0,6.07968788]
[1693984408156,0.002,25772.0,25771.0,6.07868788]
[1693984408597,0.008,25772.0,25771.0,6.07968788]
[1693984409096,0.002,25772.0,25771.0,6.07868788]
[1693984409297,0.004,25772.0,25771.0,6.09168788]
[1693984410554,0.004,25772.0,25771.0,6.15125584]
[1693984415104,0.004,25772.0,25771.0,6.1511795]
[1693984421009,0.004,25772.0,25771.0,5.3751135]
[1693984423215,0.004,25772.0,25771.0,5.2546135]
[1693984426564,0.004,25772.0,25771.0,4.86796823]
[1693984433171,0.004,25772.0,25771.0,4.80796823]
[1693984433371,0.004,25772.0,25771.0,3.97233427]
[1693984433372,0.31411786,25772.0,25771.0,3.97233427]
[1693984433573,0.45380314,25772.0,25771.0,3.97233427]
[1693984433866,0.3606528,25772.0,25771.0,3.97233427]
[1693984434246,0.3566528,25772.0,25771.0,3.94333427]
[1693984434446,0.3576528,25772.0,25771.0,3.96886581]
[1693984434627,0.3636528,25772.0,25771.0,3.96986581]
[1693984434828,0.3626528,25772.0,25771.0,3.96386581]
[1693984435049,0.3656528,25772.0,25771.0,3.96486581]
[1693984435832,0.3656528,25772.0,25771.0,4.74093181]
[1693984436931,0.50400533,25772.0,25771.0,2.84645747]
[1693984437133,0.69025237,25772.0,25771.0,2.39119347]
[1693984439773,0.50400533,25772.0,25771.0,2.39119347]
[1693984445401,0.38350533,25772.0,25771.0,2.39119347]
[1693984447475,0.38350533,25772.0,25771.0,1.61512747]
[1693984448336,0.47651136,25772.0,25771.0,1.61512747]
[1693984450844,0.47651136,25772.0,25771.0,2.39119347]
[1693984451654,0.47651136,25772.0,25771.0,1.61512747]
[1693984457062,0.38350533,25772.0,25771.0,1.61512747]
[1693984460508,0.38350533,25772.0,25771.0,2.39119347]
[1693984460715,0.38350533,25772.0,25771.0,1.61512747]
[1693984460913,0.38350533,25772.0,25771.0,2.39119347]
[1693984461631,0.38350533,25772.0,25771.0,1.61512747]
[1693984462768,0.56975237,25772.0,25771.0,1.61512747]
[1693984463765,0.56975237,25772.0,25771.0,2.39119347]
[1693984464227,0.38350533,25772.0,25771.0,3.50981254]
[1693984464427,0.38350533,25772.0,25771.0,2.73374654]
[1693984465780,0.38350533,25772.0,25771.0,3.50981254]
[1693984466563,0.16653781,25772.0,25771.0,3.50981254]
[1693984467765,0.16053781,25772.0,25771.0,3.50881254]
[1693984467993,0.15753781,25772.0,25771.0,3.50781254]
[1693984468199,0.17553781,25772.0,25771.0,3.50981254]
[1693984468587,0.17553781,25772.0,25771.0,3.50881254]
[1693984468588,0.16953781,25772.0,25771.0,3.50881254]
[1693984468967,0.18353781,25772.0,25771.0,3.50981254]
[1693984469971,0.18343215,25772.0,25771.0,3.50981254]
[1693984470374,0.27648578,25772.0,25771.0,4.28587854]
[1693984470582,0.13690616,25772.0,25771.0,4.28587854]
[1693984475817,0.27648578,25772.0,25771.0,4.28587854]
[1693984476216,0.13690616,25772.0,25771.0,4.28587854]
[1693984476779,0.27648578,25772.0,25771.0,4.28587854]
[1693984481408,0.27648578,25772.0,25771.0,4.28576808]
[1693984486449,0.27648578,25772.0,25771.0,4.3161049]
[1693984493452,0.13690616,25772.0,25771.0,4.3161049]
[1693984495989,0.13690616,25772.0,25771.0,4.31276052]
[1693984497589,0.35147531,25772.0,25771.0,4.31276052]
[1693984500368,0.35147531,25772.0,25771.0,3.53669452]
[1693984501886,0.35147531,25772.0,25771.0,4.31276052]
[1693984502497,0.35147531,25772.0,25771.0,3.53669452]
[1693984503244,0.3980013,25772.0,25771.0,3.53669452]
[1693984503447,0.44452785,25772.0,25771.0,3.53669452]
[1693984503667,0.67716056,25772.0,25771.0,3.53669452]
[1693984503785,0.90332035,25772.0,25771.0,3.53669452]
[1693984504423,1.13595306,25772.0,25771.0,3.53669452]
[1693984504698,0.90332035,25772.0,25771.0,3.53669452]
[1693984505668,0.44452785,25772.0,25771.0,3.53669452]
[1693984505887,0.44452785,25772.0,25771.0,4.31276052]
[1693984506113,0.90331372,25772.0,25771.0,4.31276052]
[1693984506744,0.90331372,25772.0,25771.0,3.53669452]
[1693984507754,0.90331372,25772.0,25771.0,4.31276052]
[1693984507999,0.90331372,25772.0,25771.0,3.53669452]
[1693984513206,1.13594643,25772.0,25771.0,3.53669452]
[1693984516406,0.90331372,25772.0,25771.0,3.53669452]
[1693984517480,0.68874457,25772.0,25771.0,4.31276052]
[1693984517895,0.68874457,25772.0,25771.0,3.53669452]
[1693984518957,0.68874457,25772.0,25771.0,4.31276052]
[1693984520237,0.2299587,25772.0,25771.0,4.31276052]
[1693984527884,0.04385253,25772.0,25771.0,4.31276052]
[1693984528101,0.23010396,25772.0,25771.0,4.31276052]
[1693984535969,0.18355318,25772.0,25771.0,4.31276052]
[1693984545630,0.18355318,25772.0,25771.0,4.31275705]
[1693984547098,0.27669031,25772.0,25771.0,4.31275705]
[1693984549999,0.27669031,25772.0,25771.0,4.51782117]
[1693984551270,0.27669031,25772.0,25771.0,4.31275705]
[1693984556717,0.13698966,25772.0,25771.0,4.69940232]
[1693984556920,0.13698966,25772.0,25771.0,4.99940232]
[1693984560267,0.32698966,25772.0,25771.0,4.99940232]
[1693984560515,0.23385253,25772.0,25771.0,4.99940232]
[1693984561207,0.32698966,25772.0,25771.0,4.99940232]
[1693984563654,0.46669031,25772.0,25771.0,4.99940232]
[1693984567177,0.74090269,25772.0,25771.0,3.83669105]
[1693984573344,0.64776556,25772.0,25771.0,3.83669105]
[1693984576916,0.63376556,25772.0,25771.0,3.83569105]
[1693984577052,0.64376556,25772.0,25771.0,3.83469105]
[1693984577253,0.66276556,25772.0,25771.0,3.83469105]
[1693984578464,0.66276556,25772.0,25771.0,3.83469232]
[1693984580129,0.66276556,25772.0,25771.0,4.61075832]
[1693984581477,0.66276556,25772.0,25771.0,4.61075825]
[1693984591724,0.38855318,25772.0,25771.0,4.61075825]
[1693984601651,1.11573966,25772.0,25771.0,3.83469225]
[1693984602414,1.11573966,25772.0,25771.0,4.61075825]
[1693984602622,1.11573966,25772.0,25771.0,3.83469225]
[1693984603557,1.11573966,25772.0,25771.0,4.61075825]
[1693984603909,1.11573966,25772.0,25771.0,3.83469225]
[1693984614030,1.11573966,25772.0,25771.0,3.83469225]
[1693984614406,1.11573966,25772.0,25771.0,3.82474313]
[1693984617602,1.11573966,25772.0,25771.0,2.74867713]
[1693984617811,1.34855395,25772.0,25771.0,2.74867713]
[1693984618434,1.16230252,25772.0,25771.0,2.74867713]
[1693984620819,1.16230252,25772.0,25771.0,3.52474313]
[1693984621207,1.16230252,25772.0,25771.0,2.74867713]
[1693984621355,1.16230252,25772.0,25771.0,1.63017079]
[1693984622961,1.16230252,25772.0,25771.0,0.85410479]
[1693984624100,1.16230252,25772.0,25771.0,0.07803879]
[1693984624480,1.16231476,25772.0,25771.0,0.85410479]
[1693984624682,1.16231476,25772.0,25771.0,1.63017079]
[1693984625602,0.92950431,25772.0,25771.0,0.85410479]
[1693984625844,1.28691064,25772.0,25771.0,0.07803879]
[1693984626226,1.05000431,25772.0,25771.0,0.04770197]
[1693984627393,1.05000431,25772.0,25771.0,0.82376797]
[1693984629720,1.05000431,25772.0,25771.0,1.59983397]
[1693984631257,1.05000431,25772.0,25771.0,2.37589997]
[1693984631258,1.12646569,25772.0,25771.0,2.37589997]
[1693984631641,0.3884612,25772.0,25771.0,3.15196597]
[1693984634862,0.3884612,25772.0,25771.0,3.65911124]
[1693984635066,0.3419341,25772.0,25771.0,3.95911124]
[1693984635413,0.24885253,25772.0,25771.0,3.95911124]
[1693984642216,0.3419341,25772.0,25771.0,3.95911124]
[1693984644267,0.48154277,25772.0,25771.0,3.95911124]
[1693984644851,0.48154277,25772.0,25771.0,3.99029233]
[1693984647979,0.3419341,25772.0,25771.0,3.99029233]
[1693984649024,0.3419341,25772.0,25771.0,2.70708106]
[1693984649303,0.48154277,25772.0,25771.0,2.70708106]
[1693984649647,0.48154277,25772.0,25771.0,3.48314706]
[1693984650052,0.3419341,25772.0,25771.0,3.48314706]
[1693984659860,0.24885253,25772.0,25771.0,3.48314706]
[1693984660262,0.3419341,25772.0,25771.0,3.48314706]
[1693984661379,0.3419341,25772.0,25771.0,4.60164597]
[1693984663872,0.3419341,25772.0,25771.0,3.48314706]
[1693984664073,0.3419341,25772.0,25771.0,4.60164069]
[1693984675837,0.48154277,25772.0,25771.0,4.60164069]
[1693984676136,0.48154277,25772.0,25771.0,4.56352114]
[1693984676533,0.48154277,25772.0,25771.0,4.58981269]
[1693984676979,0.3884612,25772.0,25771.0,4.58981269]
[1693984686424,0.3884612,25772.0,25771.0,4.97645796]
[1693984691409,0.86357605,25772.0,25771.0,4.97645796]
[1693984691957,0.86357605,25772.0,25771.0,3.81374669]
[1693984693017,0.72396738,25772.0,25771.0,3.81374669]
[1693984693970,0.72396738,25772.0,25771.0,2.69525306]
[1693984694378,0.72396738,25772.0,25771.0,3.47131906]
[1693984695018,0.72396738,25772.0,25771.0,2.69525306]
[1693984697201,0.72396738,25772.0,25771.0,2.66407197]
[1693984697833,1.10815885,25772.0,25771.0,0.81193997]
[1693984698039,1.10815885,25772.0,25771.0,1.58800597]
[1693984698245,1.10815885,25772.0,25771.0,2.36407197]
[1693984698448,1.22936272,25772.0,25771.0,2.36407197]
[1693984701333,0.7705843,25772.0,25771.0,2.36407197]
[1693984701564,1.2293129,25772.0,25771.0,2.36407197]
[1693984702855,1.41545905,25772.0,25771.0,2.36407197]
[1693984703056,1.1827678,25772.0,25771.0,2.36407197]
[1693984704800,0.72397182,25772.0,25771.0,2.36407197]
[1693984705733,1.1827546,25772.0,25771.0,3.14013797]
[1693984707373,0.89378146,25772.0,25771.0,3.14013797]
[1693984708522,0.57459443,25772.0,25771.0,3.14013797]
[1693984710658,0.43499868,25772.0,25771.0,3.14013797]
[1693984710912,0.57459177,25772.0,25771.0,3.14013797]
[1693984715303,0.43499868,25772.0,25771.0,3.14013797]
[1693984715501,0.57459231,25772.0,25771.0,3.14013797]
[1693984715709,0.43499868,25772.0,25771.0,3.14013797]
[1693984716059,0.43487628,25772.0,25771.0,3.14013797]
[1693984716243,0.38832417,25772.0,25771.0,3.14013797]
[1693984718446,0.38832417,25772.0,25771.0,3.17082836]
[1693984732422,0.38832417,25772.0,25771.0,3.13495439]
[1693984732827,0.38832417,25772.0,25771.0,3.17056403]
[1693984740157,0.57447032,25772.0,25771.0,3.17056403]
[1693984740359,0.38832417,25772.0,25771.0,4.28907298]
[1693984740584,0.34182345,25772.0,25771.0,4.58907298]
[1693984765241,0.24873013,25772.0,25771.0,4.58907298]
[1693984768942,0.24873013,25772.0,25771.0,4.97571825]
[1693984770306,0.34182345,25772.0,25771.0,4.97571825]
[1693984772545,0.34182345,25772.0,25771.0,5.09621825]
[1693984773765,0.24873013,25772.0,25771.0,5.09621825]
[1693984774720,0.34182345,25772.0,25771.0,5.09621825]
[1693984774939,0.34182028,25772.0,25771.0,5.09621825]
[1693984797814,0.15182028,25772.0,25771.0,5.09621825]
[1693984798831,0.15182028,25772.0,25771.0,4.97571825]
[1693984799035,0.47654559,25772.0,25771.0,4.58907298]
[1693984799286,0.93531326,25772.0,25771.0,4.58907298]
[1693984799549,0.47654559,25772.0,25771.0,4.58907298]
[1693984799991,0.47654559,25772.0,25771.0,3.47056403]
[1693984800191,0.70367979,25772.0,25771.0,3.47056403]
[1693984800600,0.24491043,25772.0,25771.0,3.47056403]
[1693984801456,0.70368104,25772.0,25771.0,3.47056403]
[1693984801662,0.24491043,25772.0,25771.0,3.47056403]
[1693984803743,0.38461505,25772.0,25771.0,3.47056403]
[1693984808844,0.19843475,25772.0,25771.0,3.47056403]
[1693984813520,0.19843475,25772.0,25771.0,4.58908776]
[1693984813722,0.15184421,25772.0,25771.0,4.58908776]
[1693984816345,0.15184421,25772.0,25771.0,4.97573303]
[1693984818952,0.1510546,25772.0,25771.0,4.97573303]
[1693984830219,0.05794052,25772.0,25771.0,4.97573303]
[1693984848930,0.29070777,25772.0,25771.0,3.03695576]
[1693984849146,0.29070777,25772.0,25771.0,2.73695576]
[1693984849147,0.47378299,25772.0,25771.0,2.73695576]
[1693984849362,0.47378299,25772.0,25771.0,3.51302176]
[1693984849531,0.19760087,25772.0,25771.0,2.73695576]
[1693984849893,0.46306413,25772.0,25771.0,3.51302176]
[1693984850297,0.64927793,25772.0,25771.0,2.39449803]
[1693984850522,0.70293946,25772.0,25771.0,1.61843203]
[1693984850744,0.93570671,25772.0,25771.0,1.61843203]
[1693984850948,1.1976328,25772.0,25771.0,1.61843203]
[1693984851557,1.1976328,25772.0,25771.0,1.58774164]
[1693984855543,0.96486555,25772.0,25771.0,1.58774164]
[1693984857299,0.96486555,25772.0,25771.0,2.36380764]
[1693984859730,0.50608041,25772.0,25771.0,1.58774164]
[1693984860145,0.50608041,25772.0,25771.0,2.36380764]
[1693984860347,0.96487107,25772.0,25771.0,2.36380764]
[1693984861156,0.96487107,25772.0,25771.0,1.58774164]
[1693984861577,0.96487107,25772.0,25771.0,2.36380764]
[1693984862630,0.96487107,25772.0,25771.0,1.58774164]
[1693984863911,0.50608041,25772.0,25771.0,2.36380764]
[1693984864483,0.50608041,25772.0,25771.0,1.58774164]
[1693984866708,0.50608041,25772.0,25771.0,1.61867004]
[1693984869241,0.65728355,25772.0,25771.0,0.03560964]
[1693984869424,0.65728355,25772.0,25771.0,0.81167564]
[1693984870783,0.65728355,25772.0,25771.0,1.58774164]
[1693984877038,0.65728355,25772.0,25771.0,2.36380764]
[1693984878553,0.3315374,25772.0,25771.0,2.36380764]
[1693984878784,0.6570973,25772.0,25771.0,2.36380764]
[1693984883553,0.51757163,25772.0,25771.0,2.36380764]
[1693984886037,0.97636846,25772.0,25771.0,2.36380764]
[1693984887974,1.20891125,25772.0,25771.0,2.36380764]
[1693984890637,1.02287702,25772.0,25771.0,2.36380764]
[1693984894669,0.79033423,25772.0,25771.0,2.36380764]
[1693984908446,0.78945377,25772.0,25771.0,2.36380764]
[1693984909718,0.51585689,25772.0,25771.0,3.13987364]
[1693984912919,0.51585689,25772.0,25771.0,3.104264]
[1693984913121,0.51585689,25772.0,25771.0,3.14195727]
[1693984913321,0.74885087,25772.0,25771.0,3.14195727]
[1693984930306,0.93518925,25772.0,25771.0,3.14195727]
[1693984930508,0.74885087,25772.0,25771.0,3.14195727]
[1693984933569,0.74885087,25772.0,25771.0,2.36589127]
[1693984935296,0.79324866,25772.0,25771.0,2.36589127]
[1693984939455,0.79324866,25772.0,25771.0,1.58982527]
[1693984939874,0.79324866,25772.0,25771.0,2.36589127]
[1693984947819,0.79324866,25772.0,25771.0,1.58982527]
[1693984948222,0.79324866,25772.0,25771.0,2.36589127]
[1693984948849,0.79324866,25772.0,25771.0,1.58982527]
[1693984949296,0.79324866,25772.0,25771.0,2.36589127]
[1693984949513,0.79324866,25772.0,25771.0,1.58982527]
[1693984949714,0.79324866,25772.0,25771.0,1.62144038]
[1693984951004,0.79324866,25772.0,25771.0,2.39750638]
[1693984951201,0.79324866,25772.0,25771.0,1.62144038]
[1693984951556,0.79324866,25772.0,25771.0,2.39750638]
[1693984989908,0.79324499,25772.0,25771.0,2.39750638]
[1693984993551,1.07283576,25772.0,25771.0,2.39750638]
[1693984993752,0.79324499,25772.0,25771.0,2.39750638]
[1693984994221,1.07283576,25772.0,25771.0,2.39750638]
[1693985001033,0.79324499,25772.0,25771.0,2.39750638]
[1693985005175,1.07283576,25772.0,25771.0,2.39750638]
[1693985006122,0.79324499,25772.0,25771.0,2.39750638]
[1693985021805,1.07283576,25772.0,25771.0,2.39750638]
[1693985028531,1.07283576,25772.0,25771.0,1.62144038]
[1693985028684,1.07283576,25772.0,25771.0,0.84537438]
[1693985035943,1.07283576,25772.0,25771.0,1.62144038]
[1693985047315,1.07283576,25772.0,25771.0,1.58982527]
[1693985054155,1.05083576,25772.0,25771.0,1.58982527]
[1693985054671,1.03183576,25772.0,25771.0,1.58982527]
[1693985054933,1.05583576,25772.0,25771.0,1.58982527]
[1693985055155,1.03183576,25772.0,25771.0,1.58982527]
[1693985055343,1.05583576,25772.0,25771.0,1.58982527]
[1693985055512,1.07983576,25772.0,25771.0,1.58982527]
[1693985055922,1.05583576,25772.0,25771.0,1.58982527]
[1693985056240,1.07983576,25772.0,25771.0,1.58982527]
[1693985059176,1.07983576,25772.0,25771.0,1.62063601]
[1693985063987,1.07983576,25772.0,25771.0,0.84457001]
[1693985068323,1.46648103,25772.0,25771.0,0.84457001]
[1693985068545,1.07983576,25772.0,25771.0,0.84457001]
[1693985070489,1.07983576,25772.0,25771.0,0.81375927]
[1693985077829,1.07983576,25772.0,25771.0,1.58982527]
[1693985078236,1.07983576,25772.0,25771.0,0.81375927]
[1693985080948,1.07983576,25772.0,25771.0,1.58982527]
[1693985081171,1.07983576,25772.0,25771.0,0.81375927]
[1693985084752,1.07983576,25772.0,25771.0,1.58982527]
[1693985085173,1.07983576,25772.0,25771.0,0.81375927]
[1693985085369,1.07983576,25772.0,25771.0,1.58982527]
[1693985085972,1.07983576,25772.0,25771.0,1.62082221]
[1693985086829,1.07983576,25772.0,25771.0,0.84475621]
[1693985087245,1.07983576,25772.0,25771.0,1.62082221]
[1693985088505,1.07983576,25772.0,25771.0,1.58982527]
[1693985090507,1.07983576,25772.0,25771.0,2.36589127]
[1693985090940,1.07983576,25772.0,25771.0,1.58982527]
[1693985091524,0.52285322,25772.0,25771.0,3.14195727]
[1693985093280,0.52285322,25772.0,25771.0,3.104264]
[1693985093672,0.52285322,25772.0,25771.0,3.14289123]
[1693985101575,0.52285322,25772.0,25771.0,2.36682523]
[1693985102372,0.52285322,25772.0,25771.0,3.14289123]
[1693985103438,0.52285322,25772.0,25771.0,2.36682523]
[1693985104255,0.52285322,25772.0,25771.0,3.14289123]
[1693985105582,0.52285322,25772.0,25771.0,3.17407475]
[1693985111846,0.52285322,25772.0,25771.0,2.39800875]
[1693985112243,0.52285322,25772.0,25771.0,3.17407475]
[1693985118775,0.52285322,25772.0,25771.0,2.39800875]
[1693985119324,0.52285322,25772.0,25771.0,3.17407475]
[1693985120563,0.52285322,25772.0,25771.0,2.39800875]
[1693985122082,0.52285322,25772.0,25771.0,3.17407475]
[1693985122897,0.52285322,25772.0,25771.0,2.39800875]
[1693985130669,0.73947334,25772.0,25771.0,2.39800875]
[1693985132702,1.01906411,25772.0,25771.0,2.39800875]
[1693985141711,1.17872944,25772.0,25771.0,0.03862723]
[1693985141932,1.67517467,25772.0,25771.0,0.03862723]
[1693985142139,1.18419496,25772.0,25771.0,0.03862723]
[1693985142562,1.18419496,25772.0,25771.0,0.81469323]
[1693985142792,1.18419496,25772.0,25770.0,2.328346]
[1693985142793,0.87513867,25772.0,25770.0,2.328346]
[1693985142999,1.13556464,25771.0,25770.0,2.328346]
[1693985143412,1.13556464,25771.0,25770.0,1.552253]
[1693985144035,1.13556464,25771.0,25770.0,1.55216]
[1693985144663,1.18356464,25771.0,25770.0,1.55216]
[1693985145286,1.18356464,25771.0,25770.0,1.552162]
[1693985145492,0.92276507,25771.0,25770.0,1.552162]
[1693985145717,1.19226278,25771.0,25770.0,1.552162]
[1693985150336,1.19226278,25771.0,25770.0,1.59105741]
[1693985150560,0.92276507,25771.0,25770.0,1.59105741]
[1693985150883,0.87385965,25771.0,25770.0,1.59105741]
[1693985151040,0.64335322,25771.0,25770.0,1.59105741]
[1693985151236,0.86995933,25771.0,25770.0,1.59105741]
[1693985151512,0.91644797,25771.0,25770.0,2.36715341]
[1693985151725,0.79594797,25771.0,25770.0,1.59107241]
[1693985152575,0.79594797,25771.0,25770.0,2.36716841]
[1693985158254,0.52285322,25771.0,25770.0,2.36716841]
[1693985158468,0.81387545,25771.0,25770.0,3.14326441]
[1693985163277,0.81387545,25771.0,25770.0,2.36716841]
[1693985165712,0.35508229,25771.0,25770.0,2.36716841]
[1693985165867,0.81389562,25771.0,25770.0,2.36716841]
[1693985166485,0.35508229,25771.0,25770.0,2.36716841]
[1693985166686,0.81389562,25771.0,25770.0,2.36716841]
[1693985176772,0.52287339,25771.0,25770.0,3.14326441]
[1693985177002,0.29690867,25771.0,25770.0,3.14326441]
[1693985177202,0.755722,25771.0,25770.0,3.14326441]
[1693985181935,0.48315273,25771.0,25770.0,3.14326441]
[1693985182108,0.94196606,25771.0,25770.0,3.14326441]
[1693985183072,0.70911745,25771.0,25770.0,3.14326441]
[1693985184688,0.14111538,25771.0,25770.0,3.95040968]
[1693985184894,0.048,25771.0,25770.0,3.95040968]
[1693985185874,0.024,25771.0,25770.0,3.95040968]
[1693985186271,0.002,25771.0,25770.0,3.95040968]
[1693985186482,0.024,25771.0,25770.0,3.95040968]
[1693985186685,0.024,25771.0,25770.0,3.95067465]
[1693985186912,0.09311538,25772.0,25770.0,3.95067465]
[1693985187118,0.09311538,25772.0,25771.0,0.80714527]
[1693985187295,0.09311538,25772.0,25771.0,3.91140927]
[1693985188941,0.10311538,25772.0,25771.0,3.91140927]
[1693985189555,0.10811538,25772.0,25771.0,3.91140927]
[1693985189914,0.01,25772.0,25771.0,3.91140927]
[1693985190294,0.024,25772.0,25771.0,3.91140927]
[1693985194351,0.024,25772.0,25771.0,3.94923657]
[1693985195768,0.024,25772.0,25771.0,4.11317651]
[1693985195948,0.09311538,25776.0,25773.0,0.02]
[1693985196154,0.09311538,25776.0,25775.0,0.1205]
[1693985196363,0.09311538,25776.0,25775.0,3.91092527]
[1693985197761,0.09311538,25776.0,25775.0,4.06614827]
[1693985198987,0.09311538,25776.0,25775.0,4.04454063]
[1693985199206,0.11311538,25776.0,25775.0,3.89346395]
[1693985199615,0.13111538,25776.0,25775.0,3.89446395]
[1693985200773,0.13111538,25776.0,25775.0,4.01496395]
[1693985203185,0.038,25776.0,25775.0,4.03496395]
[1693985205691,0.038,25776.0,25775.0,4.07271227]
[1693985208417,0.038,25776.0,25775.0,4.10401144]
[1693985209814,0.038,25776.0,25775.0,4.11543763]
[1693985211402,0.038,25776.0,25775.0,4.17442643]
[1693985213044,0.038,25776.0,25775.0,4.11543763]
[1693985218895,0.13111538,25776.0,25775.0,4.11543763]
[1693985219658,0.038,25776.0,25775.0,4.11543763]
[1693985220258,0.018,25776.0,25775.0,4.11343763]
[1693985220617,0.03,25776.0,25775.0,4.11443763]
[1693985220774,0.012,25776.0,25775.0,4.11343763]
[1693985221645,0.021,25776.0,25775.0,4.11443763]
[1693985222924,0.11411538,25776.0,25775.0,4.11443763]
[1693985229982,0.11411538,25776.0,25775.0,4.17404955]
[1693985230940,0.25379148,25776.0,25775.0,4.17404955]
[1693985231539,0.11411538,25776.0,25775.0,4.17404955]
[1693985231761,0.11411538,25776.0,25775.0,4.11443763]
[1693985231965,0.1606761,25776.0,25775.0,4.11443763]
[1693985233350,0.34692016,25776.0,25775.0,4.11443763]
[1693985234180,0.1606761,25776.0,25775.0,4.11443763]
[1693985239471,0.021,25776.0,25775.0,4.11443763]
[1693985239691,0.16063739,25776.0,25775.0,4.11443763]
[1693985239844,0.34682058,25776.0,25775.0,4.11443763]
[1693985253526,0.20718319,25776.0,25775.0,4.11443763]
[1693985254502,0.34692101,25776.0,25775.0,4.11443763]
[1693985255319,0.34692101,25776.0,25775.0,4.17277287]
[1693985261019,0.34692101,25776.0,25775.0,4.11443763]
[1693985261649,0.16073782,25776.0,25775.0,4.11443763]
[1693985262577,0.34692101,25776.0,25775.0,4.11443763]
[1693985262804,0.34704213,25776.0,25775.0,4.11443763]
[1693985263213,0.25388434,25776.0,25775.0,4.11443763]
[1693985263416,0.114152,25776.0,25775.0,4.11443763]
[1693985266990,0.021,25776.0,25775.0,4.11443763]
[1693985280994,0.03706006,25776.0,25775.0,4.11443763]
[1693985283780,0.021,25776.0,25775.0,4.11443763]
[1693985283983,0.23288724,25780.0,25775.0,4.64313763]
[1693985283984,0.093152,25780.0,25775.0,4.64313763]
[1693985284188,0.093152,25780.0,25779.0,0.1205]
[1693985284399,0.28223744,25781.0,25779.0,4.38627027]
[1693985284597,0.093152,25781.0,25780.0,0.50714527]
[1693985284820,0.093152,25781.0,25780.0,3.61032527]
[1693985286167,0.101152,25781.0,25780.0,3.61132527]
[1693985286373,0.107152,25781.0,25780.0,3.61232527]
[1693985287816,0.107152,25781.0,25780.0,3.59072182]
[1693985288528,0.014,25781.0,25780.0,3.59072182]
[1693985295704,0.014,25781.0,25780.0,3.62721476]
[1693985296955,0.014,25781.0,25780.0,4.77691411]
[1693985310583,0.107152,25781.0,25780.0,3.51557729]
[1693985311278,0.107152,25781.0,25780.0,4.29137229]
[1693985314287,0.24688434,25781.0,25780.0,4.29137229]
[1693985314765,0.107152,25781.0,25780.0,4.29137229]
[1693985315414,0.24688434,25781.0,25780.0,4.29137229]
[1693985320240,0.15373234,25781.0,25780.0,4.29137229]
[1693985323742,0.15373234,25781.0,25780.0,4.29138795]
[1693985324371,0.34004213,25781.0,25780.0,4.29138795]
[1693985328044,0.20030979,25781.0,25780.0,4.29138795]
[1693985329284,0.65891789,25781.0,25780.0,4.29138795]
[1693985332444,0.20030979,25781.0,25780.0,4.29138795]
[1693985332674,0.34003105,25781.0,25780.0,4.29138795]
[1693985333465,0.20030979,25781.0,25780.0,4.29138795]
[1693985343219,0.20030979,25781.0,25780.0,4.29138144]
[1693985344869,0.43319703,25781.0,25780.0,4.29138144]
[1693985345182,0.89180682,25781.0,25780.0,4.29138144]
[1693985347068,0.20030979,25781.0,25780.0,4.29138144]
[1693985347953,0.20030979,25781.0,25780.0,4.29137948]
[1693985348168,0.39030979,25781.0,25780.0,4.29137948]
[1693985348617,0.84891488,25781.0,25780.0,4.29137948]
[1693985352831,0.53004511,25781.0,25780.0,4.29137948]
[1693985353228,0.53004511,25781.0,25780.0,4.41187948]
[1693985354362,0.53004511,25781.0,25780.0,4.29137948]